Cogmind - Beta 13 @@@ ROGUE MODE // 2024.04.21 @ 13:39:47 Player: Cheeriohz Result: Destroyed by NK-0LA with NK-0LA's Tesla Doomcannon Performance ------------- Evolutions (1) 500 Regions Visited (6) 1200 Robots Destroyed (106) 530 Value Destroyed (2327) 2327 Prototype IDs (31) 620 Alien Tech Used (0) 0 Bonus (343) 343 TOTAL SCORE: 5520 Bonus ------- High Alert Combat Kills 43 Aligned with FarCom 300 Cogmind --------- Core Integrity 0/400 Matter 192/300 Energy 310/310 System Corruption 4% Temperature Cool (63) Movement Treading (250) Ox1 Location -8/Mines Parts ------- > --- POWER (1) -------- Reinforced Fission Core > --- PROPULSION (2) --- Armored Treads Armored Treads > --- UTILITY (3) ------ High-capacity Storage Unit Experimental Targeting Computer Improved Armor Integrity Analyzer > --- WEAPON (3) ------- Heavy Assault Rifle Heavy Assault Rifle 8R-AWN's Boregun > --- INVENTORY (20) --- Heavy Ion Engine Light Treads Light Treads Armored Treads Experimental Heat Sink High-capacity Matter Pod (200) Structural Scanner Experimental Sensor Array Advanced Launcher Guidance Computer Makeshift Transmission Jammer Hacking Suite Improved System Guard System Purifier High-powered Tractor Beam AS-neutralizer No. 17b Heavy Assault Rifle Mini Grenade Launcher Mini Grenade Launcher Deploy-a-Sentry Peak State ------------ > --- POWER ------------ Reinforced Fission Core > --- PROPULSION ------- Armored Treads Armored Treads > --- UTILITY ---------- High-capacity Storage Unit Experimental Targeting Computer Improved Armor Integrity Analyzer > --- WEAPON ----------- Heavy Assault Rifle Heavy Assault Rifle 8R-AWN's Boregun > --- INVENTORY -------- Heavy Ion Engine Light Treads Light Treads Armored Treads Experimental Heat Sink High-capacity Matter Pod Structural Scanner Experimental Sensor Array Advanced Launcher Guidance Computer Makeshift Transmission Jammer Hacking Suite Improved System Guard System Purifier High-powered Tractor Beam AS-neutralizer No. 17b Heavy Assault Rifle Mini Grenade Launcher Mini Grenade Launcher Deploy-a-Sentry [Rating: 47] Favorites ----------- Power Ion Engine Engine Ion Engine Power Core Reinforced Fission Core Propulsion Compact Wheel Treads Light Treads Leg Aluminum Leg Wheel Compact Wheel Utility High-capacity Storage Unit Device Seismic Detector Storage High-capacity Storage Unit Processor Targeting Computer Protection Light Armor Plating Weapon Heavy Assault Rifle Energy Gun EM Pulse Gun Ballistic Gun Heavy Assault Rifle Ballistic Cannon Improved Light Cannon Launcher Mini Grenade Launcher Impact Weapon Hammer Build | -11 -10 -10 -9 -9 -9 -8 ------- Run | Yrd Mat Min Mat Min Exi Min Slots Evolved 2 | . . . 2 . . . Power . | . . . . . . . Propulsion . | . . . . . . . Utility 1 | . . . 1 . . . Weapon 1 | . . . 1 . . . Parts Attached 81 | 2 9 2 42 5 18 3 Power 6 | . 1 . 3 1 1 . Engine 5 | . 1 . 3 1 . . Core 1 | . . . . . 1 . Reactor . | . . . . . . . Propulsion 14 | . 3 1 7 . 3 . Treads 7 | . . . 4 . 3 . Leg . | . . . . . . . Wheel 7 | . 3 1 3 . . . Hover . | . . . . . . . Flight . | . . . . . . . Utility 20 | 1 1 1 8 1 7 1 Device 12 | 1 . 1 4 . 6 . Storage 2 | . 1 . . 1 . . Processor 3 | . . . 1 . 1 1 Hackware . | . . . . . . . Protection 3 | . . . 3 . . . Artifact . | . . . . . . . Weapon 41 | 1 4 . 24 3 7 2 Energy Gun . | . . . . . . . Energy Cannon . | . . . . . . . Ballistic Gun 27 | 1 4 . 13 2 6 1 Ballistic Cannon 7 | . . . 7 . . . Launcher 6 | . . . 3 1 1 1 Special Weapon . | . . . . . . . Impact Weapon 1 | . . . 1 . . . Slashing Weapon . | . . . . . . . Piercing Weapon . | . . . . . . . Special Melee Weapon . | . . . . . . . Unidentified Prototypes 6 | . . . . . 6 . Parts Lost 9 | . . 1 2 1 4 1 Power . | . . . . . . . Propulsion 1 | . . . . . 1 . Utility 4 | . . 1 1 1 . 1 Weapon 4 | . . . 1 . 3 . Highest Loss Streak 4 | . . 1 1 1 4 1 To Critical Strikes 3 | . . . . . 3 . Average Slot Usage (%) 97 | . 99 95 97 99 96 96 Engine 10 | . 14 14 10 11 5 . Core 1 | . . . . . 5 11 Treads 8 | . . . 8 11 17 22 Wheel 15 | . 27 28 13 11 4 . Device 7 | . 14 9 11 . . 3 Storage 14 | . 14 14 11 20 16 11 Processor 4 | . . . 1 11 12 14 Protection 2 | . . . 6 . . . Ballistic Gun 25 | . 27 28 16 33 32 29 Ballistic Cannon 2 | . . . 7 . . . Impact Weapon 2 | . . . 8 . . . Naked Turns . | . . . . . . . Heaviest Build 77 | 12 52 52 68 61 77 73 Greatest Support 40 | 20 32 32 26 20 40 40 Greatest Overweight (x) 5 | . 1 1 5 5 4 1 Average Overweight (x) 2 | . . 1 4 4 2 1 Largest Inventory Capacity 20 | 8 20 20 20 20 20 20 Average Capacity 19 | 8 19 20 20 20 20 20 Most Carried 20 | 8 19 20 20 20 20 20 Average Carried 18 | 6 13 19 19 19 17 19 Final Capacity 20 | 8 20 20 20 20 20 20 Final Carried 20 | 8 19 20 20 20 20 19 Class Distribution -------------------- 57% | Mutant 25% | Gunner 12% | Scavenger-Gunner 3% | Tank Dominant Class ---------------- Mutant | -10/Materials Mutant | -10/Mines Mutant | -9/Materials Gunner | -9/Mines Gunner | -9/Exiles Gunner | -8/Mines Resources | -11 -10 -10 -9 -9 -9 -8 ----------- Run | Yrd Mat Min Mat Min Exi Min Matter Collected 3220 | 269 352 269 1361 298 671 . Remotely . | . . . . . . . Salvage Created 3263 | 132 514 366 1469 443 325 14 Parts 279 | 5 38 44 101 26 59 6 Haulers Intercepted 7 | . 2 . 5 . . . Recyclers Shooed . | . . . . . . . Parts Field Recycled . | . . . . . . . Retrieved Matter . | . . . . . . . Parts Self-Destructed . | . . . . . . . Prevented . | . . . . . . . Kills | -11 -10 -10 -9 -9 -9 -8 ------- Run | Yrd Mat Min Mat Min Exi Min Combat Hostiles Destroyed 69 | . 10 7 33 12 4 3 Guns 47 | . 10 7 20 9 1 . Cannons 9 | . . . 9 . . . AOE 13 | . . . 4 3 3 3 Classes Destroyed 15 | 2 4 1 5 . 3 . Worker 3 | . . . 3 . . . Builder 4 | . 1 3 . . . . Tunneler 13 | 3 . 10 . . . . Hauler 7 | . 2 . 5 . . . Recycler 2 | 1 . . 1 . . . Operator 4 | . 2 . 2 . . . Turret 1 | . . . . . 1 . Watcher 2 | . . . 2 . . . Swarmer 17 | . . 3 8 3 . 3 Grunt 36 | . 10 4 13 9 . . Brawler 1 | . . . 1 . . . Duelist 1 | . . . 1 . . . Sentry 10 | . . . 10 . . . Zionite 2 | . . . . . 2 . Assembled 3 | . . . . . 3 . Best Kill Streak 9 | 2 5 3 9 3 3 3 Combat Bots Only 9 | . 4 3 9 3 3 3 Max Kills in Single Turn 3 | 1 2 1 3 2 1 3 Gunslinging 1 | . . . 1 . . . Exploded 3 | . . . 2 2 1 3 Melee . | . . . . . . . Uniques/NPCs Destroyed 4 | . . . . . 4 . 8R-AWN (-9/Exiles) EX-BIN (-9/Exiles) EX-HEX (-9/Exiles) EX-DEC (-9/Exiles) Combat | -11 -10 -10 -9 -9 -9 -8 -------- Run | Yrd Mat Min Mat Min Exi Min Hostile Shots Fired 349 | . 24 21 166 43 68 27 Missed 87 | . 3 4 49 9 12 10 Damage Taken 3631 | . 274 160 1300 474 1121 302 Core 534 | . 92 38 156 62 130 56 Absorbed by Shields 160 | . . . 160 . . . Regen/Repaired (Parts) 393 | . 168 . 225 . . . Core Remaining (%) 74 | 100 . 48 . . . . Volleys Fired 273 | 16 34 36 95 27 61 4 Largest 3 | 2 2 2 3 3 3 3 Hottest 78 | 60 46 46 78 69 69 76 Shots Fired 553 | 32 68 72 189 77 105 10 Gun 489 | 32 68 72 132 75 101 9 Cannon 52 | . . . 52 . . . Launcher 12 | . . . 5 2 4 1 Special . | . . . . . . . Kinetic 536 | 27 68 72 184 75 101 9 Thermal . | . . . . . . . Explosive 12 | . . . 5 2 4 1 Electromagnetic 5 | 5 . . . . . . Robot Hit Streak 21 | 7 9 8 19 12 21 8 Robot Miss Streak 4 | 2 4 4 3 1 3 1 Penetration Max 1 | . . . . . 1 . Secondary Targets 2 | . . . 2 . . . Max Gunslinging Chain 1 | . . . 1 . . . Shots Hit Robots 409 | 22 55 51 137 54 81 9 Core Hits 190 | 7 32 31 66 21 30 3 Critical Kills 2 | . . . 1 . 1 . Critical Parts Destroyed 12 | . 1 1 2 . 7 1 Critical Strikes 15 | . 1 1 4 . 8 1 Destroy 14 | . 1 1 3 . 8 1 Blast 1 | . . . 1 . . . Melee Attacks 7 | . . . 7 . . . Impact 7 | . . . 7 . . . Slashing . | . . . . . . . Piercing . | . . . . . . . Sneak Attacks . | . . . . . . . Combat Hostiles . | . . . . . . . Follow-up Attacks . | . . . . . . . Damage Inflicted 7368 | 244 877 733 2842 1009 1400 263 Guns 5802 | 244 877 733 1705 844 1284 115 Cannons 714 | . . . 714 . . . Explosions 852 | . . . 423 165 116 148 Melee . | . . . . . . . Ramming . | . . . . . . . Kinetic 6476 | 204 877 733 2419 844 1284 115 Thermal . | . . . . . . . Explosive 852 | . . . 423 165 116 148 Electromagnetic 40 | 40 . . . . . . Impact . | . . . . . . . Slashing . | . . . . . . . Piercing . | . . . . . . . Highest Corruption 3 | . . . . . . 3 Average Corruption 1 | . . . . . . 1 Corruption Purged . | . . . . . . . Corruption Blocked . | . . . . . . . Effects 1 | . . . . . . 1 Matter Fused 1 | . . . . . . 1 Overload Shots . | . . . . . . . Overflow Damage 38 | . . . 8 . 30 . Projectiles . | . . . . . . . Explosions 38 | . . . 8 . 30 . Melee . | . . . . . . . Knockbacks 3 | . . . 3 . . . Impact . | . . . . . . . Kinetic 3 | . . . 3 . . . Secondary . | . . . . . . . Self-Inflicted Damage 123 | . . . . 28 95 . Shots 3 | . . . . 1 2 . Rammed . | . . . . . . . Targets Rammed . | . . . . . . . Kicked . | . . . . . . . Crushed . | . . . . . . . Highest Temperature 186 | 40 4 4 186 72 . 63 Average Temperature 37 | 26 2 2 45 30 . 36 Received Heat Transfer 925 | . 153 51 496 225 . . Siege Activations . | . . . . . . . Robots Corrupted . | . . . . . . . Combat Hostiles . | . . . . . . . Parts Fried . | . . . . . . . Impact Corruptions . | . . . . . . . Robots Melted . | . . . . . . . Combat Hostiles . | . . . . . . . Parts Melted . | . . . . . . . Heat Transferred . | . . . . . . . Parts Sabotaged . | . . . . . . . Parts Stolen . | . . . . . . . Parts Stripped . | . . . . . . . Power Chain Reactions . | . . . . . . . Alert | -11 -10 -10 -9 -9 -9 -8 ------- Run | Yrd Mat Min Mat Min Exi Min Peak Influence 498 | 20 298 170 498 430 . 100 Initial 157 | . 13 6 11 157 . . Average 180 | 12 127 47 245 284 . 85 Maximum Alert Level 2 | . 1 . 2 2 . . Low Security (%) 59 | 100 84 100 40 7 . 100 Level 1 25 | . 15 . 27 83 . . Level 2 15 | . . . 31 8 . . Level 3 . | . . . . . . . Level 4 . | . . . . . . . Level 5 . | . . . . . . . High Security . | . . . . . . . Max Security . | . . . . . . . Squads Dispatched 7 | . 4 . 3 . . . Investigation 2 | . 2 . . . . . Extermination . | . . . . . . . Reinforcement 5 | . 2 . 3 . . . Assault . | . . . . . . . Garrison . | . . . . . . . Intercept . | . . . . . . . Searches Triggered . | . . . . . . . Construction Impeded . | . . . . . . . Haulers Reinforced . | . . . . . . . Active Scanning Responses . | . . . . . . . Cargo Convoy Interrupts . | . . . . . . . Stealth | -11 -10 -10 -9 -9 -9 -8 --------- Run | Yrd Mat Min Mat Min Exi Min Distress Signals 9 | . 2 . 7 . . . Communications Jammed . | . . . . . . . Distress Signals . | . . . . . . . Times Spotted 149 | . 22 8 54 15 46 4 Peak Tracking Total 9 | . 6 3 6 3 9 4 Tactical Retreats 24 | . 3 1 1 2 17 . Traps | -11 -10 -10 -9 -9 -9 -8 ------- Run | Yrd Mat Min Mat Min Exi Min Traps Triggered 1 | . . . 1 . . . Indirectly . | . . . . . . . Trap Hack Attempts . | . . . . . . . Triggered . | . . . . . . . Disarmed . | . . . . . . . Reprogrammed . | . . . . . . . Reused . | . . . . . . . Traps Extracted . | . . . . . . . Installed . | . . . . . . . Triggered . | . . . . . . . Machines | -11 -10 -10 -9 -9 -9 -8 ---------- Run | Yrd Mat Min Mat Min Exi Min Machines Disabled 14 | . . . 2 . 12 . Max in Single Turn 2 | . . . 1 . 2 . Machines Repaired . | . . . . . . . Machines Dismantled . | . . . . . . . Machines Sabotaged . | . . . . . . . Overloaded Fab Kills . | . . . . . . . Hacking | -11 -10 -10 -9 -9 -9 -8 --------- Run | Yrd Mat Min Mat Min Exi Min Machines Accessed 20 | . 9 1 8 . 2 . Terminals 13 | . 6 1 6 . . . Fabricators . | . . . . . . . Repair Stations 3 | . 1 . 2 . . . Recycling Units 2 | . 2 . . . . . Scanalyzers . | . . . . . . . Garrison Access . | . . . . . . . Total Hacks 52 | . 21 5 24 . 2 . Successful 29 | . 12 2 13 . 2 . Failed 22 | . 8 3 11 . . . Catastrophic 5 | . 2 1 2 . . . Database Lockouts 1 | . 1 . . . . . Manual 24 | . 6 5 12 . 1 . Terminals 34 | . 12 5 17 . . . Fabricators . | . . . . . . . Repair Stations 14 | . 7 . 7 . . . Recycling Units 2 | . 2 . . . . . Scanalyzers . | . . . . . . . Garrison Access . | . . . . . . . Terminal Hacks 11 | . 4 1 4 . 2 . Record 1 | . . . . . 1 . Robot Analysis 3 | . 1 . 2 . . . Prototype ID Bank 1 | . 1 . . . . . Level Access Points 1 | . . 1 . . . . Alert Level 1 | . . . 1 . . . Unreport Threat 2 | . 1 . 1 . . . Locate Traps 1 | . 1 . . . . . Derelict Proto ID Bank 1 | . . . . . 1 . Fabricator Hacks . | . . . . . . . Repair Station Hacks 12 | . 6 . 6 . . . Scan Component 6 | . 3 . 3 . . . Repair 6 | . 3 . 3 . . . Recycling Unit Hacks . | . . . . . . . Scanalyzer . | . . . . . . . Garrison Access Hacks . | . . . . . . . Unauthorized Hacks 6 | . 2 1 3 . . . Terminals 4 | . . 1 3 . . . Track 1 | . . 1 . . . . Botnet 3 | . . . 3 . . . Fabricators . | . . . . . . . Repair Stations . | . . . . . . . Recycling Units 2 | . 2 . . . . . Tunnel 2 | . 2 . . . . . Scanalyzers . | . . . . . . . Garrison Access . | . . . . . . . Data Cores Recovered . | . . . . . . . Used . | . . . . . . . Hacking Detections 16 | . 7 1 8 . . . Full Trace Events . | . . . . . . . Feedback Events . | . . . . . . . Feedback Blocked . | . . . . . . . Robot Schematics Acquired . | . . . . . . . Robots Built . | . . . . . . . Authchips . | . . . . . . . Time . | . . . . . . . Total Robot Build Rating . | . . . . . . . Part Schematics Acquired . | . . . . . . . Parts Built . | . . . . . . . Authchips . | . . . . . . . Time . | . . . . . . . Total Part Build Rating . | . . . . . . . Parts Repaired 6 | . 3 . 3 . . . Time 186 | . 90 . 96 . . . Parts Recycled . | . . . . . . . Recycled Matter . | . . . . . . . Retrieved Matter . | . . . . . . . Retrieved Components . | . . . . . . . Parts Scanalyzed . | . . . . . . . Part Schematics Acquired . | . . . . . . . Parts Damaged . | . . . . . . . Bothacking | -11 -10 -10 -9 -9 -9 -8 ------------ Run | Yrd Mat Min Mat Min Exi Min Used RIF Installer . | . . . . . . . Robots Hacked . | . . . . . . . Non-combat . | . . . . . . . Combat . | . . . . . . . Robot Hacks Applied . | . . . . . . . Relay Couplers Released . | . . . . . . . Fabnet Peak Effective % . | . . . . . . . Robots Rewired . | . . . . . . . Allies Hacked . | . . . . . . . Hacks Repelled . | . . . . . . . Allies | -11 -10 -10 -9 -9 -9 -8 -------- Run | Yrd Mat Min Mat Min Exi Min Total Allies . | . . . . . . . Largest Group . | . . . . . . . Highest-Rated Group . | . . . . . . . Highest-Rated Ally . | . . . . . . . Total Orders . | . . . . . . . Ally Attacks . | . . . . . . . Total Damage . | . . . . . . . Kills . | . . . . . . . Allies Corrupted . | . . . . . . . Allies Melted . | . . . . . . . Intel | -11 -10 -10 -9 -9 -9 -8 ------- Run | Yrd Mat Min Mat Min Exi Min Robot Analysis Total 3 | . 1 . 2 . . . Derelict Logs Recovered 3 | . . 1 . 2 . . Drone Launches . | . . . . . . . Drone Recoveries . | . . . . . . . Exploration | -11 -10 -10 -9 -9 -9 -8 ------------- Run | Yrd Mat Min Mat Min Exi Min Turns Passed 7139 | 109 1062 1094 2422 630 1801 21 Spaces Moved 3883 | 28 743 816 1154 303 836 3 Core . | . . . . . . . Treads 344 | . . . 23 7 311 3 Legs 38 | 28 10 . . . . . Wheels 3501 | . 733 816 1131 296 525 . Hover . | . . . . . . . Flight . | . . . . . . . Fastest Speed 90 | 120 90 105 105 150 150 250 Average Speed 144 | 120 106 114 155 160 187 250 Slowest Speed 400 | 120 120 115 400 320 250 250 Overloaded Moves . | . . . . . . . Propulsion Burnouts . | . . . . . . . Robots Hopped . | . . . . . . . Cave-ins Triggered . | . . . . . . . Exploration Rate (%) 65 | 3 98 96 97 67 90 6 Regions Visited 6 Branch Regions 4 Pre-discovered Areas 5 | . 2 . . 2 1 . Known Exits Taken 1 | . . 1 . . . . Unknown Exits Taken 5 | 1 1 . 1 1 1 . Scrap Searched 2 | . . 1 . 1 . . Spaces Dug 4 | . . . 4 . . . Terrain Destroyed 86 | . . . 32 18 21 15 Melee 4 | . . . 4 . . . Projectile 6 | . . . 2 . 4 . AOE 76 | . . . 26 18 17 15 Terrain Rammed . | . . . . . . . Walls Destroyed . | . . . . . . . Machines Disabled . | . . . . . . . Actions | -11 -10 -10 -9 -9 -9 -8 --------- Run | Yrd Mat Min Mat Min Exi Min Total 4924 | 73 948 902 1605 393 993 10 Wait 546 | 26 141 43 248 53 35 . Move 3877 | 27 742 815 1153 302 835 3 Hop . | . . . . . . . Pick Up 63 | 2 14 3 23 3 18 . Fast Attach 25 | 1 4 1 12 1 6 . Attach 11 | . . . 4 1 5 1 Detach 10 | . 1 . 2 . 7 . Swap 45 | 1 5 1 26 3 7 2 Drop 67 | . 7 3 35 3 19 . Fire 273 | 16 34 36 95 27 61 4 Melee 7 | . . . 7 . . . Ram . | . . . . . . . Kick . | . . . . . . . Crush . | . . . . . . . Escape Stasis . | . . . . . . . Rewire . | . . . . . . . Trap . | . . . . . . . Miscellaneous . | . . . . . . . Route ------- -11/Scrapyard -10/Materials (discovered 3 exits: *Mat x2 / *Min) -10/Mines (discovered 3 exits: *Mat x2 / [*Sub]) -9/Materials (discovered 5 exits: [*Mat x3] / [*Min x2]) -9/Mines (discovered 2 exits: [*Mat] / *Exi) -9/Exiles (discovered 2 exits: [*Min x2]) -8/Mines History --------- Turn | Location | Event 1 | -11/Scrapyard | Discovered new exit (range 3) 110 | -11/Scrapyard | Entered Materials 302 | -10/Materials | Build established: Mutant 525 | -10/Materials | Discovered new exit (range 5) 565 | -10/Materials | Central database locked down 694 | -10/Materials | Discovered new exit (range 6) 816 | -10/Materials | Repaired Shotgun 843 | -10/Materials | Repaired Lgt. Treads 1026 | -10/Materials | Discovered new exit (range 3) 1134 | -10/Materials | Repaired Shotgun 1172 | -10/Materials | Entered Mines 1174 | -10/Mines | Identified exit to Materials 1191 | -10/Mines | Found a damaged Exp. Sensor Array with a note attached 1193 | -10/Mines | Found Prototype Device 1408 | -10/Mines | Core integrity fell below 50% 1532 | -10/Mines | Learned Materials security intel 1732 | -10/Mines | Discovered new exit (range 5) 2266 | -10/Mines | Entered Materials 2266 | -9/Materials | Evolved 2 slots: Utility x1, Weapon x1 2266 | -9/Materials | Discovered new exit (range 8) 2508 | -9/Materials | Discovered new exit (range 8) 2705 | -9/Materials | Discovered new exit (range 15) 3124 | -9/Materials | Discovered new exit (range 3) 3461 | -9/Materials | Destroyed 9 combat bots 4148 | -9/Materials | Repaired Hvy. Assault Rifle 4216 | -9/Materials | Discovered new exit (range 9) 4461 | -9/Materials | Repaired Hvy. Assault Rifle 4494 | -9/Materials | Repaired Hvy. Assault Rifle 4688 | -9/Materials | Entered Mines 4711 | -9/Mines | Met a Derelict bent on vengeance 4763 | -9/Mines | A Derelict revealed a hidden shortcut to a safe place 4778 | -9/Mines | Build established: Gunner 4889 | -9/Mines | Found a hidden stash of uninstalled traps 4983 | -9/Mines | Learned location of Zion (-7) 5012 | -9/Mines | Discovered new exit (range 9) 5027 | -9/Mines | Core integrity fell below 50% 5311 | -9/Mines | Deemed a non-threat by the Exiles lab entrance 5312 | -9/Mines | Discovered new exit (range 5) 5318 | -9/Mines | Entered Exiles 5342 | -9/Exiles | Discovered new exit (range 15) 5359 | -9/Exiles | Met 8R-AWN 5381 | -9/Exiles | Met EX-HEX 5425 | -9/Exiles | Met EX-BIN 5443 | -9/Exiles | Aligned with FarCom system 5444 | -9/Exiles | Given EX-Vault access code 5480 | -9/Exiles | Opened EX-Vault 5516 | -9/Exiles | Warned to stay clear of 0b10 Research branches 5563 | -9/Exiles | Met EX-DEC 5624 | -9/Exiles | Discovered new exit (range 12) 6100 | -9/Exiles | Attacked by the Exiles 6241 | -9/Exiles | Core integrity fell below 20% 6257 | -9/Exiles | Destroyed 8R-AWN 6265 | -9/Exiles | Found Prototype Ballistic Gun 6273 | -9/Exiles | Lost 4 parts (1n3w) 6281 | -9/Exiles | Found Prototype Device 6281 | -9/Exiles | Identified AS-neutralizer No. 17b 6297 | -9/Exiles | Found Prototype Processor 6300 | -9/Exiles | Identified Exp. Targeting Computer 6301 | -9/Exiles | Identified 8R-AWN's Boregun 6467 | -9/Exiles | Destroyed EX-BIN 6496 | -9/Exiles | Destroyed EX-HEX 6531 | -9/Exiles | Build established: Scavenger-Gunner 6546 | -9/Exiles | Destroyed EX-DEC 6611 | -9/Exiles | Found Prototype Device 6611 | -9/Exiles | Identified System Purifier 6801 | -9/Exiles | Found Deploy-a-Sentry 7119 | -9/Exiles | Left Exiles lab with Deploy-a-Sentry 7119 | -9/Exiles | Entered Mines 7125 | -8/Mines | NK-0LA came to Exiles' defense 7140 | -8/Mines | Destroyed by NK-0LA with NK-0LA's Tesla Doomcannon Last Messages --------------- 07098_ Acquired Prototype Device. 07102_ Dropped Mak. Power Source. 07103_ Acquired Seismic Detector. 07105_ Dropped Lgt. Treads. 07108_ Acquired Hacking Suite. A strange signal echoes through the mines. LOCATION=UNKNOWN GOAL=ESCAPE 07121_ S-10 Pest destroyed. 07125_ NK-0LA: "I came as fast as I could... Wait, it was you!" 07129_ Seismic Detector destroyed. 07133_ HV Slug penetrates NK-0LA. 07133_ NK-0LA suffers critical hit (Destroy). 07133_ Destroyed Prototype Device. 07133_ HV Slug penetrates Wall. 07136_ HV Slug penetrates NK-0LA. 07136_ HV Slug penetrates Wall. 07139_ HV Slug penetrates NK-0LA. 07139_ HV Slug penetrates Wall. 07140_ System corrupted: Matter fused (-7). Map ----- +----------------------------------------------------+ | ???????????????????????????????????????????????? | | ???????????????????????????????????????????????? | | ???????????????????????????????????????????????? | | ???????????????????????????????????????????????? | | ???????????????????????????????????????????????? | | ???????????????????????????????????????????????? | | ???????????????????????????????????????????????? | | ???????????????????????????????????????????????? | | ???????????????????????????????????????????????? | | ???????????????????#???????????????????????????? | | ??????????????????? #??????????????????????????? | | ?????????????????? ###???????????????????????? | | ??????????????????# #???????????????????????? | | ??????????????????? ???????????????????????? | | ??????????????????? ???????????????????????? | | ??????????????????? ???????????????????????? | | ??????????????????? ????????????????????????? | | ??????????????????? ????????????????????????? | | ???????????????????# ????????????????????????? | | ???????????????????# #????????????????????????? | | ?????????????????### #????????????????????????? | | ????????????????## #????????????????????????? | | ????????????????# #????????????????????????? | | ???????????????## x###??????????????????????? | | ???????????????# ###????????????????????? | | ???????????????# @ #????????????????????? | | ???????????????## #??????????????????? | | ????????????????# #??????????????????? | | ????????????????## [%% #??????????????????? | | ?????????????????## [%= #??????????????????? | | ??????????????????## =* #??????????????????? | | ???????????????????#### ###??????????????????? | | ???????????????????????####????????????????????? | | ???????????????????????????????????????????????? | | | | | | | | | | | | | | | | | | | | | | | | | | | | | | | | | +----------------------------------------------------+ Best States ------------- Heat Dissipation 28 Energy Generation 19 Energy Capacity 310 Matter Stores 500 Matter Capacity 500 Sight Range 16 Terrain Scan Density 10 Armor Coverage 150 Evasion (%) 50 Targeting Accuracy 17 Armor Integrity Analysis 40 Recoil Reduction 2 Item Schematics ----------------- None Robot Schematics ------------------ None Fabricated ------------ Nothing Alien Tech Used ----------------- None Achievements -------------- None Challenges ------------ None Game ------ Seed AdvancedStorageSegregator Manual? 0 Play Time 00:45:28 Cumulative 145.3 hours Start 2024.04.21 @ 12:54:30 End 2024.04.21 @ 13:39:47 Sessions 1 Manual Loads 0 Difficulty Rogue Special Mode None Game No. 130 Rogue 130 Adventurer 0 Explorer 0 Win Type - Total 3 Types 2/0/0/1/0/0/0/0/0 Lore% 55 Gallery% 72 Achievement% 55 Wizard Run 0 Options --------- Layout 2 ASCII 0 Keyboard 1 Movement Numpad Keybinds 0 Fullscreen 1 Font 32/SmallcapsGlow Map View 77x44 Zoom Use 0% Tactical HUD 1 Map Filters NONE Filters NONE Steam 1 RUN: 23d46161-a5e2-4b6f-9494-563bf9942608